fUST/lending_fUST_20250429
["ID","MTS","AMOUNT","RATE_DAILY","PERIOD"]
[359247475,1745867440968,-151.0,0.00020987,2]
[359247476,1745867440977,-151.0,0.00020987,2]
[359247477,1745867440986,-605.768609,0.00020987,2]
[359247478,1745867440995,-151.0,0.00020987,2]
[359247479,1745867441005,-605.768609,0.00020987,2]
[359247480,1745867441014,-151.0,0.00020987,2]
[359247481,1745867441023,-151.0,0.00020987,2]
[359247482,1745867441032,-605.768609,0.00020987,2]
[359247483,1745867441041,-605.768609,0.00020987,2]
[359247484,1745867441050,-151.0,0.00020987,2]
[359247485,1745867441059,-151.0,0.00020987,2]
[359247486,1745867441068,-151.0,0.00020987,2]
[359247487,1745867441077,-197.958145,0.00020987,2]
[359247488,1745867441086,-197.958145,0.00020987,2]
[359247489,1745867441096,-197.958145,0.00020987,2]
[359247490,1745867441105,-197.958145,0.00020987,2]
[359247491,1745867441124,-151.0,0.00020987,2]
[359247492,1745867441143,-151.0,0.00020987,2]
[359247493,1745867441162,-151.0,0.00020987,2]
[359247494,1745867441183,-181.059577,0.00020987,2]
[359247495,1745867441201,-151.0,0.00020988,2]
[359247496,1745867441220,-151.0,0.00020988,2]
[359247497,1745867441236,-151.0,0.00020988,2]
[359247498,1745867441251,-151.0,0.00020988,2]
[359247499,1745867441271,-151.0,0.00020988,2]
[359247500,1745867441290,-151.0,0.00020988,2]
[359247501,1745867441308,-151.0,0.00020988,2]
[359247502,1745867441320,-208.81244,0.00020988,2]
[359247503,1745867441340,-151.0,0.00020988,2]
[359247504,1745867441354,-151.0,0.00020988,2]
[359247505,1745867441372,-151.0,0.00020988,2]
[359247506,1745867441385,-151.0,0.00020988,2]
[359247507,1745867441401,-174.974909,0.00020988,2]
[359247508,1745867441416,-174.974909,0.00020988,2]
[359247509,1745867441431,-174.974909,0.00020988,2]
[359247510,1745867441448,-174.974909,0.00020988,2]
[359247511,1745867441463,-151.0,0.00020988,2]
[359247512,1745867441478,-151.0,0.00020988,2]
[359247513,1745867441494,-605.768609,0.00020988,2]
[359247514,1745867441508,-605.768609,0.00020988,2]
[359247515,1745867441525,-151.0,0.00020989,2]
[359247516,1745867441540,-151.0,0.00020989,2]
[359247518,1745867441555,-151.0,0.00020989,2]
[359247520,1745867441570,-151.0,0.00020989,2]
[359247523,1745867441584,-151.108648,0.00020989,2]
[359247525,1745867441600,-151.0,0.00020989,2]
[359247528,1745867441615,-151.0,0.00020989,2]
[359247531,1745867441629,-500.0,0.00020989,2]
[359247533,1745867441643,-151.0,0.0002099,2]
[359247536,1745867441659,-174.974909,0.0002099,2]
[359247538,1745867441672,-174.974909,0.0002099,2]
[359247541,1745867441688,-151.0,0.0002099,2]
[359247543,1745867441702,-151.0,0.0002099,2]
[359247546,1745867441717,-197.958145,0.0002099,2]
[359247548,1745867441731,-197.958145,0.0002099,2]
[359247551,1745867441746,-151.0,0.0002099,2]
[359247553,1745867441761,-151.0,0.0002099,2]
[359247555,1745867441775,-151.0,0.0002099,2]
[359247557,1745867441789,-151.0,0.0002099,2]
[359247558,1745867441803,-157.45,0.00021,2]
[359247559,1745867441817,-568.00023364,0.00021555,3]
[359247560,1745867441832,-759.65847487,0.00021775,2]
[359247561,1745867441846,-613.88,0.00021917,2]
[359247562,1745867441861,-400.0,0.00021917,2]
[359247563,1745867441874,-400.0,0.00021917,2]
[359247564,1745867441889,-5224.16,0.00021917,2]
[359247565,1745867441902,-400.0,0.00021917,2]
[359247566,1745867441917,-448.42,0.00021917,2]
[359247567,1745867441931,-2484.47,0.00021917,2]
[359247568,1745867441946,-400.0,0.00021917,2]
[359247575,1745867442068,-400.0,0.00021917,2]
[359247576,1745867442086,-400.0,0.00021917,2]
[359247577,1745867442095,-400.0,0.00021917,2]
[359247578,1745867442105,-2759.37,0.00021917,2]
[359247579,1745867442114,-400.0,0.00021917,2]
[359247580,1745867442124,-400.0,0.00021917,2]
[359247581,1745867442134,-400.0,0.00021917,2]
[359247582,1745867442144,-7203.55282965,0.00021917,2]
[359247583,1745867442165,-23.15717035,0.00021917,2]
[359247584,1745867442174,-400.0,0.00021917,2]
[359247585,1745867442183,-317.66426069,0.00021917,2]
[359247607,1745867443935,-3825.00000137,0.000209,2]
[359247608,1745867443947,-548.67886231,0.000209,2]
[359247609,1745867443959,-5884.50561892,0.000209,2]
[359247610,1745867443969,-151.0,0.00020985,2]
[359247611,1745867443978,-151.0,0.00020985,2]
[359247612,1745867443987,-151.0,0.0002099,2]
[359247613,1745867443998,-1807.52573931,0.00021917,2]
[359247614,1745867444008,-1633.33,0.00021917,2]
[359247615,1745867444017,-400.0,0.00021917,2]
[359247616,1745867444027,-400.0,0.00021917,2]
[359247617,1745867444036,-400.0,0.00021917,2]
[359247618,1745867444046,-400.0,0.00021917,2]
[359247619,1745867444055,-400.0,0.00021917,2]
[359247620,1745867444064,-400.0,0.00021917,2]
[359247621,1745867444074,-502.05243072,0.00021917,2]
[359247622,1745867444083,-151.0,0.00021917,2]
[359247623,1745867444093,-151.0,0.00021917,2]
[359247624,1745867444103,-594.09,0.00021917,2]
[359247625,1745867444113,-500.43582153,0.00021917,2]
[359247626,1745867444123,-400.0,0.00021917,2]
[359247627,1745867444133,-400.0,0.00021917,2]
[359247628,1745867444143,-400.0,0.00021917,2]
[359247629,1745867444154,-3460.28,0.00021917,2]
[359247630,1745867444163,-400.0,0.00021917,2]
[359247631,1745867444173,-197.958145,0.00021917,2]
[359247632,1745867444183,-807.51,0.00021917,2]
[359247633,1745867444193,-197.958145,0.00021917,2]
[359247634,1745867444205,-5061.42,0.00021917,2]
[359247635,1745867444215,-2744.31,0.00021917,2]
[359247636,1745867444226,-400.0,0.00021917,2]
[359247637,1745867444237,-4235.76,0.00021917,2]
[359247638,1745867444247,-846.29452559,0.00021917,2]
[359247666,1745867446464,-1649.53662793,0.00021917,2]
[359247667,1745867446476,-129.95884648,0.00021917,2]
[359247668,1745867446487,-400.0,0.00021917,2]
[359247669,1745867446496,-310.00057428,0.00021917,2]
[359247670,1745867446511,-89.99942572,0.00021917,2]
[359247671,1745867446521,-151.0,0.00021917,2]
[359247672,1745867446531,-393.01096267,0.00021917,2]
[359247673,1745867446549,-6.98903733,0.00021917,2]
[359247674,1745867446558,-400.0,0.00021917,2]
[359247675,1745867446568,-400.0,0.00021917,2]
[359247676,1745867446577,-400.0,0.00021917,2]
[359247677,1745867446587,-151.0,0.00021917,2]
[359247678,1745867446596,-541.77,0.00021917,2]
[359247679,1745867446605,-400.0,0.00021917,2]
[359247680,1745867446615,-400.0,0.00021917,2]
[359247681,1745867446624,-400.0,0.00021917,2]
[359247682,1745867446633,-692.63,0.00021917,2]
[359247683,1745867446642,-407.61096267,0.00021917,2]
[359247684,1745867446654,-152.85903733,0.00021917,2]
[359247685,1745867446663,-400.0,0.00021917,2]
[359247686,1745867446672,-1857.82,0.00021917,2]
[359247687,1745867446681,-400.0,0.00021917,2]
[359247688,1745867446690,-400.0,0.00021917,2]
[359247689,1745867446700,-207.83954205,0.00021917,2]
[359247690,1745867446710,-888.06,0.00021917,2]
[359247691,1745867446720,-2708.23,0.00021917,2]
[359247692,1745867446731,-400.0,0.00021917,2]
[359247693,1745867446743,-151.0,0.00021917,2]
[359247694,1745867446754,-400.0,0.00021917,2]
[359247695,1745867446764,-601.79,0.00021917,2]
[359247696,1745867446773,-215.205135,0.00021917,2]
[359247697,1745867446783,-400.0,0.00021917,2]
[359247698,1745867446792,-166.0,0.00021918,2]
[359247699,1745867446802,-151.0,0.00021918,2]
[359247700,1745867446811,-151.0,0.00021918,2]
[359247701,1745867446821,-467.57082823,0.00021918,2]
[359247702,1745867446834,-500.0,0.00021918,2]
[359247703,1745867446845,-500.0,0.00021918,2]
[359247704,1745867446857,-500.0,0.00021918,2]
[359247705,1745867446866,-500.0,0.00021918,2]
[359247706,1745867446876,-281.02546207,0.00021918,2]
[359247707,1745867446886,-151.0,0.0002199,7]
[359247708,1745867446895,-151.0,0.0002199,7]
[359247709,1745867446905,-213.755846,0.0002199,7]
[359247710,1745867446916,-151.0,0.0002199,7]
[359247711,1745867446925,-151.0,0.0002199,7]
[359247712,1745867446935,-605.768609,0.0002199,2]
[359247713,1745867446944,-605.768609,0.0002199,2]
[359247714,1745867446954,-4986.22173966,0.0002199,2]
[359247715,1745867446973,-151.0,0.00020985,2]
[359247716,1745867446983,-11407.91715984,0.0002199,2]
[359247717,1745867446995,-16430.07409396,0.0002199,2]
[359247739,1745868532126,-4734.00919971,0.00015,2]
[359247793,1745868632686,-2453.95138604,0.000189,2]
[359247795,1745868632696,-3336.03982882,0.00019717,2]
[359247797,1745868632706,-491.92053234,0.0001989,2]
[359247798,1745868632715,-300.0,0.00019981,2]
[359247799,1745868632725,-462.0,0.00019981,2]
[359247801,1745868632733,-300.0,0.00019981,2]
[359247802,1745868632743,-169.289322,0.00019982,2]
[359247803,1745868632752,-24900.0,0.00019982,2]
[359247804,1745868632762,-250.0,0.00019982,2]
[359247805,1745868632771,-513.63543957,0.00019989,2]
[359247806,1745868632782,-261.30743844,0.00019989,2]
[359247807,1745868632792,-500.0,0.00019989,2]
[359247808,1745868632801,-842.68283583,0.00019989,2]
[359247809,1745868632810,-500.0,0.00019989,2]
[359247810,1745868632820,-842.68283583,0.00019989,2]
[359247811,1745868632831,-500.0,0.00019989,2]
[359247812,1745868632844,-842.68283583,0.00019989,2]
[359247813,1745868632855,-193.10953612,0.00019989,2]
[359247814,1745868632865,-842.68283583,0.00019989,2]
[359247815,1745868632875,-842.68283583,0.00019989,2]
[359247816,1745868632886,-842.68283583,0.00019989,2]
[359247817,1745868632895,-842.68283583,0.00019989,2]
[359247818,1745868632906,-842.68283583,0.00019989,2]
[359247819,1745868632918,-842.68283583,0.00019989,2]
[359247820,1745868632928,-842.68283583,0.00019989,2]
[359247821,1745868632937,-842.68283583,0.00019989,2]
[359247822,1745868632947,-842.68283583,0.00019989,2]
[359247823,1745868632957,-842.68283583,0.00019989,2]
[359247824,1745868632966,-842.68283583,0.00019989,2]
[359247825,1745868632976,-842.68283583,0.00019989,2]
[359247826,1745868632985,-842.68283583,0.00019989,2]
[359247827,1745868632995,-842.68283583,0.00019989,2]
[359247828,1745868633005,-842.68283583,0.00019989,2]
[359247829,1745868633015,-842.68283583,0.00019989,2]
[359247830,1745868633024,-842.68283583,0.00019989,2]
[359247831,1745868633034,-771.77214339,0.00019989,2]
[359247882,1745868638659,-70.91069244,0.00019989,2]
[359247884,1745868638669,-842.68283583,0.00019989,2]
[359247886,1745868638679,-842.68283583,0.00019989,2]
[359247888,1745868638688,-42.9236359,0.00019989,2]
[359248027,1745868641058,-799.75919993,0.00019989,2]
[359248029,1745868641068,-842.68283583,0.00019989,2]
[359248031,1745868641077,-842.68283583,0.00019989,2]
[359248033,1745868641087,-842.68283583,0.00019989,2]
[359248035,1745868641097,-842.68283583,0.00019989,2]
[359248037,1745868641107,-842.68283583,0.00019989,2]
[359248039,1745868641118,-842.68283583,0.00019989,2]
[359248041,1745868641128,-842.68283583,0.00019989,2]
[359248043,1745868641138,-842.68283583,0.00019989,2]
[359248045,1745868641148,-842.68283583,0.00019989,2]
[359248047,1745868641158,-842.68283583,0.00019989,2]
[359248049,1745868641168,-842.68283583,0.00019989,2]
[359248052,1745868641178,-842.68283583,0.00019989,2]
[359248053,1745868641188,-842.68283583,0.00019989,2]
[359248056,1745868641199,-842.68283583,0.00019989,2]
[359248058,1745868641209,-842.68283583,0.00019989,2]
[359248060,1745868641219,-842.68283583,0.00019989,2]
[359248062,1745868641228,-842.68283583,0.00019989,2]
[359248065,1745868641238,-842.68283583,0.00019989,2]
[359248068,1745868641247,-842.68283583,0.00019989,2]
[359248070,1745868641257,-842.68283583,0.00019989,2]
[359248072,1745868641266,-842.68283583,0.00019989,2]
[359248074,1745868641276,-842.68283583,0.00019989,2]
[359248076,1745868641286,-842.68283583,0.00019989,2]
[359248078,1745868641296,-842.68283583,0.00019989,2]
[359248080,1745868641305,-842.68283583,0.00019989,2]
[359248082,1745868641315,-842.68283583,0.00019989,2]
[359248084,1745868641324,-842.68283583,0.00019989,2]
[359248086,1745868641333,-842.68283583,0.00019989,2]
[359248088,1745868641343,-842.68283583,0.00019989,2]
[359248090,1745868641353,-842.68283583,0.00019989,2]
[359248092,1745868641362,-842.68283583,0.00019989,2]
[359248094,1745868641372,-842.68283583,0.00019989,2]
[359248096,1745868641382,-842.68283583,0.00019989,2]
[359248098,1745868641391,-550.17711519,0.00019989,2]
[359248100,1745868641401,-3020.17372958,0.00019989,2]
[359248102,1745868641411,-3020.17372958,0.00019989,2]
[359248104,1745868641421,-3020.17372958,0.00019989,2]
[359248106,1745868641431,-3020.17372958,0.00019989,2]
[359248108,1745868641440,-3020.17372958,0.00019989,2]
[359248110,1745868641450,-3020.17372958,0.00019989,2]
[359248112,1745868641460,-1840.98126249,0.00019989,2]
[359248320,1745868643628,-305.77536789,0.00019989,2]
[359248333,1745868643736,-873.4170992,0.00019989,2]
[359248335,1745868643745,-3020.17372958,0.00019989,2]
[359248337,1745868643754,-3020.17372958,0.00019989,2]
[359248339,1745868643764,-701.76553515,0.00019989,2]
[359248363,1745868647048,-2318.40819443,0.00019989,2]
[359248364,1745868647058,-3020.17372958,0.00019989,2]
[359248365,1745868647067,-3020.17372958,0.00019989,2]
[359248366,1745868647076,-3020.17372958,0.00019989,2]
[359248367,1745868647086,-3020.17372958,0.00019989,2]
[359248368,1745868647095,-3020.17372958,0.00019989,2]
[359248369,1745868647104,-1829.12070678,0.00019989,2]
[359248397,1745869831840,-300.0,0.00018628,2]
[359248398,1745869831851,-300.0,0.00018628,2]
[359248399,1745869831861,-24900.0,0.00018629,2]
[359248400,1745869831871,-301.90674573,0.00018696,2]
[359248401,1745869831882,-1769.47824542,0.000189,2]
[359248402,1745869831893,-3152.6841495,0.00018957,2]
[359248403,1745869831902,-301.90674573,0.00018969,2]
[359248404,1745869831912,-3174.128885,0.00018988,2]
[359248405,1745869831922,-301.90674573,0.00019198,2]
[359248406,1745869831931,-557.98854033,0.0001932,2]
[359248407,1745869831940,-63387.10388026,0.00019329,2]
[359248506,1745869837717,-500.0,0.00019328,2]
[359248508,1745869837728,-478.52491759,0.00019328,2]
[359248510,1745869837738,-1644.82413991,0.00019328,2]
[359248512,1745869837749,-500.0,0.00019328,2]
[359248514,1745869837758,-500.0,0.00019328,2]
[359248516,1745869837768,-1644.82413991,0.00019328,2]
[359248518,1745869837778,-500.0,0.00019328,2]
[359248520,1745869837787,-500.0,0.00019328,2]
[359248522,1745869837796,-276.82680259,0.00019328,2]
[359248524,1745869837807,-403.19028049,0.00019328,2]
[359248526,1745869837819,-964.80705683,0.00019328,2]
[359248528,1745869837828,-500.0,0.00019328,2]
[359248530,1745869837837,-957.90313916,0.00019328,2]
[359248533,1745869837849,-686.92100075,0.00019328,2]
[359248535,1745869837859,-500.0,0.00019328,2]
[359248537,1745869837868,-500.0,0.00019328,2]
[359248539,1745869837877,-1644.82413991,0.00019328,2]
[359248541,1745869837887,-500.0,0.00019328,2]
[359248543,1745869837897,-500.0,0.00019328,2]
[359248545,1745869837907,-1644.82413991,0.00019328,2]
[359248547,1745869837916,-500.0,0.00019328,2]
[359248549,1745869837925,-392.08379611,0.00019328,2]
[359248551,1745869837934,-163.96446546,0.00019328,2]
[359248553,1745869837946,-1480.85967445,0.00019328,2]
[359248555,1745869837955,-500.0,0.00019328,2]
[359248556,1745869837963,-1644.82413991,0.00019328,2]
[359248557,1745869837972,-55.9775552,0.00019328,2]
[359248558,1745869837987,-444.0224448,0.00019328,2]
[359248559,1745869837997,-1644.82413991,0.00019328,2]
[359248560,1745869838006,-191.64355524,0.00019328,2]
[359248561,1745869838015,-1644.82413991,0.00019328,2]
[359248562,1745869838024,-500.0,0.00019328,2]
[359248563,1745869838033,-1644.82413991,0.00019328,2]
[359248564,1745869838042,-500.0,0.00019328,2]
[359248565,1745869838051,-1644.82413991,0.00019328,2]
[359248566,1745869838062,-1644.82413991,0.00019328,2]
[359248567,1745869838071,-500.0,0.00019328,2]
[359248568,1745869838080,-1644.82413991,0.00019328,2]
[359248569,1745869838089,-1644.82413991,0.00019328,2]
[359248570,1745869838098,-1644.82413991,0.00019328,2]
[359248571,1745869838108,-500.0,0.00019328,2]
[359248572,1745869838117,-1644.82413991,0.00019328,2]
[359248573,1745869838125,-1644.82413991,0.00019328,2]
[359248574,1745869838135,-1644.82413991,0.00019328,2]
[359248575,1745869838144,-1644.82413991,0.00019328,2]
[359248576,1745869838153,-1644.82413991,0.00019328,2]
[359248578,1745869838162,-1644.82413991,0.00019328,2]
[359248580,1745869838172,-1644.82413991,0.00019328,2]
[359248582,1745869838181,-121.33767003,0.00019328,2]
[359248584,1745869838193,-1523.48646988,0.00019328,2]
[359248586,1745869838205,-1644.82413991,0.00019328,2]
[359248588,1745869838215,-1644.82413991,0.00019328,2]
[359248590,1745869838224,-1644.82413991,0.00019328,2]
[359248592,1745869838233,-1422.65830627,0.00019328,2]
[359248594,1745869838246,-222.16583364,0.00019328,2]
[359248596,1745869838256,-1644.82413991,0.00019328,2]
[359248598,1745869838266,-1644.82413991,0.00019328,2]
[359248601,1745869838279,-1644.82413991,0.00019328,2]
[359248603,1745869838290,-1644.82413991,0.00019328,2]
[359248605,1745869838300,-1644.82413991,0.00019328,2]
[359248607,1745869838310,-43.71346681,0.00019328,2]
[359248609,1745869838322,-1601.1106731,0.00019328,2]
[359248611,1745869838332,-1644.82413991,0.00019328,2]
[359248613,1745869838341,-1644.82413991,0.00019328,2]
[359248615,1745869838351,-1644.82413991,0.00019328,2]
[359248617,1745869838360,-1644.82413991,0.00019328,2]
[359248619,1745869838370,-1455.81218458,0.00019328,2]
[359248622,1745869838392,-189.01195533,0.00019328,2]
[359248624,1745869838402,-1320.87993235,0.00019328,2]
[359248626,1745869838413,-323.94420756,0.00019328,2]
[359248628,1745869838422,-1214.06848864,0.00019328,2]
[359248631,1745869838433,-430.75565127,0.00019328,2]
[359248633,1745869838444,-1644.82413991,0.00019328,2]
[359248634,1745869838454,-722.31931125,0.00019328,2]
[359248637,1745869838468,-922.50482866,0.00019328,2]
[359248639,1745869838478,-1644.82413991,0.00019328,2]
[359248641,1745869838487,-1644.82413991,0.00019328,2]
[359248643,1745869838496,-1644.82413991,0.00019328,2]
[359248645,1745869838506,-1376.29805371,0.00019328,2]
[359248647,1745869838518,-268.5260862,0.00019328,2]
[359248649,1745869838527,-1644.82413991,0.00019328,2]
[359248651,1745869838537,-1644.82413991,0.00019328,2]
[359248653,1745869838546,-1644.82413991,0.00019328,2]
[359248655,1745869838555,-1644.82413991,0.00019328,2]
[359248657,1745869838563,-36612.89611974,0.00019329,2]
[359248659,1745869838572,-301.90674576,0.00019701,2]
[359248661,1745869838582,-8137.69100907,0.00019882,2]
[359248663,1745869838591,-429.66187325,0.00019882,2]
[359248665,1745869838601,-471.4359422,0.0001997,3]
[359248844,1745869840306,-1000.9806409,0.0001997,3]
[359248847,1745869840318,-2161.9134169,0.0001997,3]
[359248849,1745869840327,-1817.17,0.0001997,3]
[359248851,1745869840336,-896.03157751,0.0001997,3]
[359248856,1745869840375,-12.54842249,0.0001997,3]
[359248858,1745869840384,-454.29,0.0001997,3]
[359248860,1745869840393,-227.15,0.0001997,3]
[359248862,1745869840403,-681.46,0.0001997,3]
[359248864,1745869840412,-500.0,0.00019973,2]
[359248866,1745869840421,-500.0,0.00019973,2]
[359248868,1745869840430,-507.68983846,0.00019973,2]
[359248869,1745869840439,-500.0,0.00019973,2]
[359248871,1745869840449,-500.0,0.00019973,2]
[359248873,1745869840458,-500.0,0.00019973,2]
[359248875,1745869840467,-500.0,0.00019973,2]
[359248877,1745869840476,-500.0,0.00019973,2]
[359248879,1745869840485,-500.0,0.00019973,2]
[359248881,1745869840495,-300.0,0.00019973,2]
[359248882,1745869840504,-500.0,0.00019973,2]
[359248883,1745869840513,-500.0,0.00019973,2]
[359248884,1745869840522,-500.0,0.00019973,2]
[359248885,1745869840531,-230.59655137,0.00019973,2]
[359248886,1745869840542,-269.40344863,0.00019973,2]
[359248887,1745869840551,-70.96155137,0.00019973,2]
[359248888,1745869840562,-429.03844863,0.00019973,2]
[359248889,1745869840571,-83.33586826,0.00019973,2]
[359248890,1745869840621,-416.66413174,0.00019973,2]
[359248891,1745869840630,-500.0,0.00019973,2]
[359248892,1745869840639,-500.0,0.00019973,2]
[359248893,1745869840648,-500.0,0.00019975,2]
[359248895,1745869840658,-191.57304191,0.00019975,2]
[359248897,1745869840668,-205.4054788,0.00019975,2]
[359248899,1745869840677,-10863.61899628,0.00019976,2]
[359248901,1745869840689,-1273.90242,0.00019976,2]
[359249123,1745869843458,-659.2907214,0.00019976,2]
[359249135,1745869843561,-79377.27605535,0.00019976,2]
[359249137,1745869843572,-401.32949645,0.00019976,2]
[359249355,1745869845947,-9927.81540424,0.00019976,2]
[359249356,1745869845957,-151.0,0.00019978,2]
[359249357,1745869845967,-151.533029,0.00019978,2]
[359249358,1745869845977,-151.0,0.00019978,2]
[359249359,1745869845986,-151.0,0.00019978,2]
[359249360,1745869845996,-151.0,0.00019978,2]
[359249361,1745869846006,-151.0,0.00019978,2]
[359249362,1745869846016,-151.0,0.00019979,2]
[359249363,1745869846026,-151.886758,0.00019979,2]
[359249364,1745869846036,-151.0,0.00019979,2]
[359249365,1745869846046,-151.0,0.0001998,2]
[359249366,1745869846142,-151.0,0.00019981,2]
[359249367,1745869846158,-151.0,0.00019981,2]
[359249368,1745869846168,-192.690572,0.00019981,2]
[359249369,1745869846177,-380.94808,0.00019981,2]
[359249370,1745869846187,-380.94808,0.00019981,2]
[359249371,1745869846196,-205.502287,0.00019981,2]
[359249372,1745869846208,-151.0,0.00019981,2]
[359249373,1745869846218,-151.0,0.00019981,2]
[359249374,1745869846227,-169.289322,0.00019982,2]
[359249375,1745869846237,-162.0252337,0.00019982,2]
[359249376,1745869846247,-163.051815,0.00019982,2]
[359249377,1745869846256,-151.0,0.00019982,2]
[359249378,1745869846266,-151.0,0.00019982,2]
[359249379,1745869846275,-271.822705,0.00019982,2]
[359249380,1745869846286,-380.94808,0.00019982,2]
[359249381,1745869846296,-380.94808,0.00019982,2]
[359249382,1745869846305,-151.0,0.00019982,2]
[359249383,1745869846316,-151.0,0.00019982,2]
[359249384,1745869846330,-151.0,0.00019982,2]
[359249385,1745869846340,-151.0,0.00019982,2]
[359249386,1745869846349,-151.0,0.00019983,2]
[359249387,1745869846358,-151.0,0.00019983,2]
[359249388,1745869846368,-151.0,0.00019983,2]
[359249389,1745869846377,-151.0,0.00019984,2]
[359249390,1745869846387,-151.0,0.00019984,2]
[359249391,1745869846396,-151.0,0.00019984,2]
[359249392,1745869846407,-151.0,0.00019984,2]
[359249393,1745869846417,-155.043777,0.00019986,2]
[359249394,1745869846426,-152.439723,0.00019987,2]
[359249395,1745869846435,-151.0,0.00019987,2]
[359249396,1745869846445,-151.0,0.00019987,2]
[359249397,1745869846454,-500.0,0.00019987,2]
[359249398,1745869846463,-151.144259,0.00019989,2]
[359249399,1745869846473,-151.0,0.0001999,2]
[359249400,1745869846482,-151.0,0.0001999,2]
[359249401,1745869846491,-151.0,0.0001999,2]
[359249402,1745869846501,-151.0,0.0001999,2]
[359249403,1745869846511,-151.0,0.0001999,2]
[359249404,1745869846520,-151.0,0.0001999,2]
[359249405,1745869846530,-226.449356,0.0001999,2]
[359249406,1745869846539,-380.94808,0.0001999,2]
[359249407,1745869846548,-380.94808,0.0001999,2]
[359249408,1745869846558,-151.0,0.0001999,2]
[359249409,1745869846567,-262.865244,0.0001999,2]
[359249410,1745869846576,-151.0,0.0001999,2]
[359249411,1745869846586,-151.0,0.0001999,2]
[359249412,1745869846595,-151.0,0.0001999,2]
[359249413,1745869846604,-266.517734,0.0001999,2]
[359249415,1745869846613,-151.36378773,0.0002,2]
[359249417,1745869846623,-500.0,0.00020261,2]
[359249418,1745869846632,-469.64942702,0.00020286,2]
[359249420,1745869846641,-420.0,0.00020312,2]
[359249422,1745869846651,-396.0,0.00020312,2]
[359249424,1745869846661,-429.66187324,0.00020366,2]
[359249426,1745869846671,-500.0,0.00020535,2]
[359249428,1745869846680,-762.86010979,0.000206,2]
[359249430,1745869846690,-762.86010972,0.000206,2]
[359249432,1745869846699,-154.01062912,0.00020809,2]
[359249434,1745869846709,-429.66187324,0.0002085,2]
[359249436,1745869846718,-33747.98145922,0.0002097,2]
[359249440,1745869846739,-1383.54627258,0.0002097,2]
[359249443,1745869846759,-807.18846441,0.0002097,2]
[359249444,1745869846770,-3593.7,0.0002097,2]
[359251289,1745871031952,-1179.65216362,0.000189,2]
[359251290,1745871031962,-2598.11032638,0.000193,2]
[359251312,1745871032272,-343.70237891,0.000193,2]
[359251314,1745871032282,-620.2598106,0.00019341,2]
[359251316,1745871032291,-831.0,0.00019794,2]
[359251318,1745871032300,-3687.6022185,0.00019795,2]
[359251320,1745871032309,-151.0,0.00019978,2]
[359251322,1745871032319,-247.486792,0.0002087,2]
[359251324,1745871032328,-712.00276913,0.000209,3]
[359251326,1745871032337,-151.44949841,0.00020928,2]
[359251328,1745871032347,-300.0,0.00020958,2]
[359251330,1745871032356,-1760.37,0.0002096,3]
[359251342,1745871032463,-1466.98,0.0002096,3]
[359251344,1745871032473,-733.49,0.0002096,3]
[359251346,1745871032482,-366.75,0.0002096,3]
[359251348,1745871032491,-183.37,0.0002096,3]
[359251350,1745871032501,-550.16,0.0002096,3]
[359251352,1745871032510,-500.0,0.00020968,2]
[359251354,1745871032519,-841.36378649,0.00020968,2]
[359251356,1745871032529,-321.34264401,0.00020968,2]
[359251358,1745871032540,-187.96039503,0.00020968,2]
[359251360,1745871032548,-841.36378649,0.00020968,2]
[359251362,1745871032558,-841.36378649,0.00020968,2]
[359251364,1745871032571,-841.36378649,0.00020968,2]
[359251366,1745871032581,-841.36378649,0.00020968,2]
[359251368,1745871032590,-841.36378649,0.00020968,2]
[359251370,1745871032599,-841.36378649,0.00020968,2]
[359251372,1745871032611,-841.36378649,0.00020968,2]
[359251374,1745871032621,-841.36378649,0.00020968,2]